[Event "WSCC 50 Open 2017"]
[Site "?"]
[Date "2017.11.11"]
[Round "5"]
[White "Prasad, Devaki V"]
[Black "Vepkhvishvili, Varlam"]
[Result "1-0"]
[ECO "C50"]
[WhiteElo "2290"]
[BlackElo "2048"]
[PlyCount "77"]
[EventDate "2017.??.??"]
[EventType "swiss"]
[EventCountry "ITA"]
[SourceTitle "Acqui Terme"]
[TimeControl "40/5400+30:1800+30"]
[WhiteClock "0:07:10"]
[BlackClock "0:27:39"]

1. e4 {[%emt 0:00:00]} e5 {[%emt 0:00:06]} 2. Nf3 {[%emt 0:00:00]} Nc6 {[%emt 0:00:09]} 3. Bc4 {[%emt 0:00:12]} Be7 {[%emt 0:00:10]} 4. d4 {[%emt 0:00:23]} d6 {[%emt 0:00:15]} 5. dxe5 {[%emt 0:00:18]} dxe5 {[%emt 0:00:09]} 6. Qxd8+ {[%emt 0:00:15]} Bxd8 {[%emt 0:00:10]} 7. Nc3 {[%emt 0:00:21]} Nf6 {[%emt 0:01:15]} 8. Be3 {[%emt 0:00:19]} h6 {[%emt 0:08:43]} 9. h3 {[%emt 0:33:34]} O-O {[%emt 0:03:27]} 10. O-O-O {[%emt 0:00:06]} a6 {[%emt 0:05:21]} 11. g4 {[%emt 0:06:19]} g5 {[%emt 0:05:46]} 12. Rdg1 {[%emt 0:06:32]} Kg7 {[%emt 0:02:36]} 13. h4 {[%emt 0:09:35]} b5 {[%emt 0:19:41]} 14. hxg5 {[%emt 0:02:51]} hxg5 {[%emt 0:04:47]} 15. Bd5 {[%emt 0:01:31]} Nxd5 {[%emt 0:01:58]} 16. exd5 {[%emt 0:00:15]} Na5 {[%emt 0:05:03]} 17. Nxe5 {[%emt 0:19:09]} b4 {[%emt 0:05:31]} 18. Ne2 {[%emt 0:02:10]} Bb7 {[%emt 0:02:55]} 19. Ng3 {[%emt 0:01:08]} Bxd5 {[%emt 0:00:53]} 20. Nf5+ {[%emt 0:01:07]} Kg8 {[%emt 0:00:48]} 21. Rh6 {[%emt 0:01:10]} Re8 {[%emt 0:00:36]} 22. Nd7 {[%emt 0:01:43]} Re6 {[%emt 0:00:32]} 23. Bd4 {[%emt 0:00:23]} Rxh6 {[%emt 0:00:25]} 24. Nxh6+ {[%emt 0:00:04]} Kh7 {[%emt 0:00:35]} 25. Rg3 {[%emt 0:03:28]} f6 {[%emt 0:01:45]} 26. Rh3 {[%emt 0:01:16]} Kg6 {[%emt 0:01:05]} 27. Nf5 {[%emt 0:00:26]} Be4 {[%emt 0:01:56]} 28. Rh6+ {[%emt 0:00:40]} Kf7 {[%emt 0:00:03]} 29. Rh7+ {[%emt 0:01:22]} Kg8 {[%emt 0:02:01]} 30. Rg7+ {[%emt 0:00:22]} Kh8 {[%emt 0:00:02]} 31. Nxf6 {[%emt 0:01:08]} Bxf6 {[%emt 0:00:11]} 32. Bxf6 {[%emt 0:00:06]} Bxf5 {[%emt 0:00:12]} 33. Rxc7+ {[%emt 0:01:08]} Kg8 {[%emt 0:00:08]} 34. gxf5 {[%emt 0:00:22]} g4 {[%emt 0:00:51]} 35. Be7 {[%emt 0:00:56]} Rb8 {[%emt 0:00:26]} 36. f6 {[%emt 0:00:43]} Nb7 {[%emt 0:01:05]} 37. Bxb4 {[%emt 0:00:14]} Nd8 {[%emt 0:00:09]} 38. Rg7+ {[%emt 0:00:28]} Kh8 {[%emt 0:00:06]} 39. Bc3 {[%emt 0:00:16]} 1-0

[Event "WSCC 50 Open 2017"]
[Site "?"]
[Date "2017.11.11"]
[Round "5"]
[White "Baimurzin, Aitkazy"]
[Black "Brendel, Oliver"]
[Result "*"]
[ECO "A22"]
[WhiteElo "2170"]
[BlackElo "2334"]
[PlyCount "99"]
[EventDate "2017.??.??"]
[EventType "swiss"]
[EventCountry "ITA"]
[SourceTitle "Acqui Terme"]
[TimeControl "40/5400+30:1800+30"]
[WhiteClock "0:11:46"]
[BlackClock "0:14:18"]

1. c4 {[%emt 0:00:12]} e5 {[%emt 0:00:18]} 2. Nc3 {[%emt 0:01:20]} Nf6 {[%emt 0:00:24]} 3. g3 {[%emt 0:00:46]} d5 {[%emt 0:00:22]} 4. cxd5 {[%emt 0:00:14]} Nxd5 {[%emt 0:00:06]} 5. Bg2 {[%emt 0:00:11]} Nb6 {[%emt 0:00:09]} 6. Nf3 {[%emt 0:00:24]} Nc6 {[%emt 0:00:11]} 7. a3 {[%emt 0:01:50]} a5 {[%emt 0:01:00]} 8. d3 {[%emt 0:02:21]} Be7 {[%emt 0:02:16]} 9. Be3 {[%emt 0:03:25]} O-O {[%emt 0:00:41]} 10. Rc1 {[%emt 0:05:10]} Be6 {[%emt 0:05:51]} 11. Na4 {[%emt 0:12:56]} e4 {[%emt 0:02:18]} 12. Nd2 {[%emt 0:06:29]} Nxa4 {[%emt 0:01:58]} 13. Qxa4 {[%emt 0:01:31]} exd3 {[%emt 0:00:13]} 14. exd3 {[%emt 0:02:54]} Ne5 {[%emt 0:12:25]} 15. O-O {[%emt 0:03:45]} Nxd3 {[%emt 0:00:08]} 16. Rc3 {[%emt 0:02:46]} Bf6 {[%emt 0:07:03]} 17. Rc2 {[%emt 0:15:51]} c6 {[%emt 0:00:30]} 18. Ne4 {[%emt 0:02:27]} Nxb2 {[%emt 0:05:15]} 19. Rxb2 {[%emt 0:04:23]} Bxb2 {[%emt 0:00:12]} 20. Bc5 {[%emt 0:00:45]} Qd3 {[%emt 0:03:15]} 21. Bxf8 {[%emt 0:06:33]} Kxf8 {[%emt 0:19:40]} 22. Nc5 {[%emt 0:07:48]} Qc4 {[%emt 0:06:01]} 23. Nxe6+ {[%emt 0:01:11]} Qxe6 {[%emt 0:00:07]} 24. Rb1 {[%emt 0:02:15]} b5 {[%emt 0:08:34]} 25. Qc2 {[%emt 0:02:11]} Bd4 {[%emt 0:10:31]} 26. Qxc6 {[%emt 0:03:49]} Rb8 {[%emt 0:00:14]} 27. Qc7 {[%emt 0:02:26]} Qb6 {[%emt 0:01:45]} 28. Qf4 {[%emt 0:00:32]} Rd8 {[%emt 0:01:06]} 29. Bf1 {[%emt 0:01:22]} b4 {[%emt 0:01:48]} 30. axb4 {[%emt 0:00:22]} axb4 {[%emt 0:00:07]} 31. Bc4 {[%emt 0:00:31]} Bf6 {[%emt 0:01:00]} 32. Ba2 {[%emt 0:02:14]} Rd4 {[%emt 0:00:32]} 33. Qe3 {[%emt 0:01:43]} Qa7 {[%emt 0:03:57]} 34. Bb3 {[%emt 0:01:56]} Rd7 {[%emt 0:00:53]} 35. Qe4 {[%emt 0:00:15]} Bc3 {[%emt 0:02:16]} 36. Qxh7 {[%emt 0:00:25]} g6 {[%emt 0:03:12]} 37. Qh6+ {[%emt 0:00:24]} Bg7 {[%emt 0:00:22]} 38. Qf4 {[%emt 0:00:21]} Qd4 {[%emt 0:00:46]} 39. Qb8+ {[%emt 0:00:39]} Rd8 {[%emt 0:00:27]} 40. Qb7 {[%emt 0:00:09]} Rd7 {[%emt 0:30:19]} 41. Qa8+ {[%emt 0:30:03]} Rd8 {[%emt 0:00:14]} 42. Qf3 {[%emt 0:00:38]} Qf6 {[%emt 0:00:00]} 43. Qg4 {[%emt 0:00:00]} Qe7 {[%emt 0:00:00]} 44. h4 {[%emt 0:00:00]} Bc3 {[%emt 0:00:00]} 45. Kg2 {[%emt 0:00:00]} Rd2 {[%emt 0:00:00]} 46. Qc8+ {[%emt 0:00:00]} Kg7 {[%emt 0:00:00]} 47. Qc4 {[%emt 0:00:00]} Qb7+ {[%emt 0:00:00]} 48. Kg1 {[%emt 0:00:00]} Bd4 {[%emt 0:00:00]} 49. Rd1 {[%emt 0:00:00]} Bxf2+ {[%emt 0:00:00]} 50. Kh2 {[%emt 0:00:00]} *

[Event "WSCC 50 Open 2017"]
[Site "?"]
[Date "2017.11.11"]
[Round "5"]
[White "Biro, Sandor"]
[Black "Buchal, Stephan"]
[Result "1/2-1/2"]
[ECO "B00"]
[WhiteElo "2168"]
[BlackElo "2347"]
[PlyCount "30"]
[EventDate "2017.??.??"]
[EventType "swiss"]
[EventCountry "ITA"]
[SourceTitle "Acqui Terme"]
[TimeControl "40/5400+30:1800+30"]
[WhiteClock "0:57:19"]
[BlackClock "0:37:41"]

1. e4 {[%emt 0:00:00]} d6 {[%emt 0:00:30]} 2. Nf3 {[%emt 0:00:09]} Nf6 {[%emt 0:00:03]} 3. c3 {[%emt 0:00:07]} g6 {[%emt 0:00:39]} 4. Bd3 {[%emt 0:08:54]} Bg7 {[%emt 0:01:09]} 5. Bc2 {[%emt 0:00:06]} O-O {[%emt 0:00:39]} 6. d4 {[%emt 0:00:06]} e5 {[%emt 0:06:28]} 7. O-O {[%emt 0:00:52]} Nbd7 {[%emt 0:00:55]} 8. Na3 {[%emt 0:07:05]} b6 {[%emt 0:02:35]} 9. Re1 {[%emt 0:01:22]} Bb7 {[%emt 0:06:01]} 10. Bg5 {[%emt 0:01:41]} h6 {[%emt 0:14:11]} 11. Bh4 {[%emt 0:01:13]} Qe8 {[%emt 0:10:18]} 12. Nb5 {[%emt 0:07:10]} Qb8 {[%emt 0:03:58]} 13. c4 {[%emt 0:06:55]} exd4 {[%emt 0:05:09]} 14. Nfxd4 {[%emt 0:01:54]} Re8 {[%emt 0:02:31]} 15. Nc3 {[%emt 0:02:37]} Nc5 {[%emt 0:05:13]} 1/2-1/2

[Event "WSCC 50 Open 2017"]
[Site "?"]
[Date "2017.11.11"]
[Round "5"]
[White "Madeira, Wagner Martins"]
[Black "Contin, Daniel"]
[Result "*"]
[ECO "C15"]
[WhiteElo "2139"]
[BlackElo "2272"]
[PlyCount "113"]
[EventDate "2017.??.??"]
[EventType "swiss"]
[EventCountry "ITA"]
[SourceTitle "Acqui Terme"]
[TimeControl "40/5400+30:1800+30"]
[WhiteClock "0:01:08"]
[BlackClock "0:28:14"]

1. e4 {[%emt 0:00:00]} e6 {[%emt 0:01:09]} 2. d4 {[%emt 0:00:00]} d5 {[%emt 0:00:05]} 3. Nc3 {[%emt 0:00:00]} Bb4 {[%emt 0:00:21]} 4. exd5 {[%emt 0:00:07]} exd5 {[%emt 0:00:07]} 5. Bd3 {[%emt 0:00:08]} Nc6 {[%emt 0:00:20]} 6. a3 {[%emt 0:00:11]} Bxc3+ {[%emt 0:00:30]} 7. bxc3 {[%emt 0:00:10]} Nce7 {[%emt 0:00:28]} 8. Qe2 {[%emt 0:13:09]} Nf6 {[%emt 0:05:58]} 9. Bg5 {[%emt 0:01:12]} Ne4 {[%emt 0:00:17]} 10. Bxe4 {[%emt 0:00:40]} dxe4 {[%emt 0:00:08]} 11. Qxe4 {[%emt 0:00:03]} f6 {[%emt 0:00:25]} 12. Bd2 {[%emt 0:10:09]} O-O {[%emt 0:14:46]} 13. Ne2 {[%emt 0:08:37]} Bf5 {[%emt 0:09:03]} 14. Qxb7 {[%emt 0:01:43]} Bxc2 {[%emt 0:06:02]} 15. O-O {[%emt 0:01:41]} c6 {[%emt 0:08:38]} 16. Nf4 {[%emt 0:02:27]} Rf7 {[%emt 0:18:28]} 17. Rfe1 {[%emt 0:06:31]} a5 {[%emt 0:01:08]} 18. Ne6 {[%emt 0:33:33]} Qc8 {[%emt 0:01:54]} 19. Qxc8+ {[%emt 0:00:39]} Rxc8 {[%emt 0:00:44]} 20. c4 {[%emt 0:01:01]} a4 {[%emt 0:01:26]} 21. Bb4 {[%emt 0:00:40]} Nf5 {[%emt 0:00:46]} 22. Rac1 {[%emt 0:05:19]} Bb3 {[%emt 0:00:03]} 23. Bc5 {[%emt 0:00:23]} Rd7 {[%emt 0:00:21]} 24. f4 {[%emt 0:02:19]} Kf7 {[%emt 0:00:33]} 25. g4 {[%emt 0:00:15]} Nh6 {[%emt 0:01:26]} 26. h3 {[%emt 0:00:28]} Re8 {[%emt 0:02:43]} 27. f5 {[%emt 0:02:07]} g6 {[%emt 0:00:56]} 28. fxg6+ {[%emt 0:06:04]} hxg6 {[%emt 0:00:03]} 29. Nf4 {[%emt 0:00:12]} Rxe1+ {[%emt 0:00:14]} 30. Rxe1 {[%emt 0:00:01]} Bxc4 {[%emt 0:00:16]} 31. Kf2 {[%emt 0:00:47]} g5 {[%emt 0:01:34]} 32. Nh5 {[%emt 0:01:34]} Rb7 {[%emt 0:02:09]} 33. Bb4 {[%emt 0:00:17]} f5 {[%emt 0:01:17]} 34. Ng3 {[%emt 0:01:36]} fxg4 {[%emt 0:00:19]} 35. Ne4 {[%emt 0:00:10]} Rd7 {[%emt 0:10:23]} 36. Nd6+ {[%emt 0:00:20]} Rxd6 {[%emt 0:00:03]} 37. Bxd6 {[%emt 0:00:07]} Nf5 {[%emt 0:00:05]} 38. Be5 {[%emt 0:02:44]} gxh3 {[%emt 0:00:39]} 39. Rg1 {[%emt 0:00:13]} Ke6 {[%emt 0:03:19]} 40. Rxg5 {[%emt 0:01:44]} c5 {[%emt 0:30:14]} 41. Rh5 {[%emt 0:02:10]} cxd4 {[%emt 0:00:00]} 42. Bf4 {[%emt 0:02:37]} Bb3 {[%emt 0:00:00]} 43. Rxh3 {[%emt 0:00:09]} Kd5 {[%emt 0:00:00]} 44. Ke2 {[%emt 0:03:14]} Ke4 {[%emt 0:00:00]} 45. Bc1 {[%emt 0:00:59]} Bc2 {[%emt 0:00:00]} 46. Kd2 {[%emt 0:07:56]} Bb3 {[%emt 0:00:00]} 47. Bb2 {[%emt 0:02:14]} Kd5 {[%emt 0:00:00]} 48. Rh5 {[%emt 0:04:01]} Ke4 {[%emt 0:00:00]} 49. Rh8 {[%emt 0:03:30]} Kd5 {[%emt 0:00:00]} 50. Rd8+ {[%emt 0:07:00]} Kc5 {[%emt 0:00:00]} 51. Rc8+ {[%emt 0:00:32]} Kd5 {[%emt 0:00:00]} 52. Rd8+ {[%emt 0:00:53]} Kc5 {[%emt 0:00:00]} 53. Rc8+ {[%emt 0:00:39]} Kd5 {[%emt 0:00:00]} 54. Rd8+ {[%emt 0:01:03]} Kc6 {[%emt 0:00:00]} 55. Rc8+ {[%emt 0:00:26]} Kd5 {[%emt 0:00:00]} 56. Rd8+ {[%emt 0:00:08]} Kc6 {[%emt 0:00:00]} 57. Rxd4 *

[Event "WSCC 50 Open 2017"]
[Site "?"]
[Date "2017.11.12"]
[Round "6"]
[White "Buchal, Stephan"]
[Black "Bergstrom, Rolf"]
[Result "1/2-1/2"]
[ECO "A10"]
[WhiteElo "2347"]
[BlackElo "2270"]
[PlyCount "30"]
[EventDate "2017.??.??"]
[EventType "swiss"]
[EventCountry "ITA"]
[SourceTitle "Acqui Terme"]
[TimeControl "40/5400+30:1800+30"]
[WhiteClock "0:38:43"]
[BlackClock "0:58:05"]

1. c4 {[%emt 0:00:00]} b6 {[%emt 0:00:18]} 2. Nc3 {[%emt 0:00:07]} Bb7 {[%emt 0:00:09]} 3. e4 {[%emt 0:00:41]} e5 {[%emt 0:00:13]} 4. g3 {[%emt 0:01:21]} f5 {[%emt 0:03:37]} 5. Bg2 {[%emt 0:00:55]} Nf6 {[%emt 0:00:11]} 6. d3 {[%emt 0:02:51]} fxe4 {[%emt 0:02:42]} 7. Nge2 {[%emt 0:02:38]} Nc6 {[%emt 0:00:23]} 8. dxe4 {[%emt 0:07:06]} Bc5 {[%emt 0:00:26]} 9. h3 {[%emt 0:11:41]} O-O {[%emt 0:00:31]} 10. O-O {[%emt 0:03:20]} Nd4 {[%emt 0:01:42]} 11. Be3 {[%emt 0:09:18]} Nxe2+ {[%emt 0:00:53]} 12. Qxe2 {[%emt 0:00:32]} d6 {[%emt 0:00:40]} 13. Rad1 {[%emt 0:02:38]} Qe8 {[%emt 0:04:03]} 14. Nd5 {[%emt 0:11:36]} Nxd5 {[%emt 0:21:31]} 15. exd5 {[%emt 0:04:03]} Qg6 {[%emt 0:02:36]} 1/2-1/2

[Event "WSCC 50 Open 2017"]
[Site "?"]
[Date "2017.11.12"]
[Round "6"]
[White "Mantovani, Renzo"]
[Black "Madeira, Wagner Martins"]
[Result "1-0"]
[ECO "B07"]
[WhiteElo "2307"]
[BlackElo "2139"]
[PlyCount "111"]
[EventDate "2017.??.??"]
[EventType "swiss"]
[EventCountry "ITA"]
[SourceTitle "Acqui Terme"]
[TimeControl "40/5400+30:1800+30"]
[WhiteClock "0:10:44"]
[BlackClock "0:05:50"]

1. e4 {[%emt 0:00:00]} d6 {[%emt 0:00:15]} 2. d4 {[%emt 0:00:00]} Nf6 {[%emt 0:00:07]} 3. Nc3 {[%emt 0:00:00]} g6 {[%emt 0:00:07]} 4. Be3 {[%emt 0:00:10]} Bg7 {[%emt 0:00:46]} 5. f3 {[%emt 0:00:21]} c6 {[%emt 0:00:08]} 6. Qd2 {[%emt 0:00:41]} b5 {[%emt 0:00:35]} 7. h4 {[%emt 0:00:50]} Nbd7 {[%emt 0:01:23]} 8. g4 {[%emt 0:02:32]} h6 {[%emt 0:02:21]} 9. Nge2 {[%emt 0:16:19]} a6 {[%emt 0:09:03]} 10. Ng3 {[%emt 0:01:46]} e6 {[%emt 0:05:28]} 11. O-O-O {[%emt 0:13:08]} b4 {[%emt 0:27:04]} 12. Nce2 {[%emt 0:01:33]} Qa5 {[%emt 0:00:33]} 13. Kb1 {[%emt 0:00:59]} Bb7 {[%emt 0:13:25]} 14. a3 {[%emt 0:08:26]} Qc7 {[%emt 0:09:36]} 15. axb4 {[%emt 0:02:46]} a5 {[%emt 0:00:27]} 16. bxa5 {[%emt 0:05:08]} Rxa5 {[%emt 0:00:49]} 17. Nc1 {[%emt 0:00:18]} Ke7 {[%emt 0:08:07]} 18. Nb3 {[%emt 0:01:44]} Ra4 {[%emt 0:00:19]} 19. g5 {[%emt 0:01:32]} hxg5 {[%emt 0:00:37]} 20. hxg5 {[%emt 0:02:13]} Ne8 {[%emt 0:00:09]} 21. Rxh8 {[%emt 0:02:57]} Bxh8 {[%emt 0:00:12]} 22. f4 {[%emt 0:02:16]} d5 {[%emt 0:04:31]} 23. Qh2 {[%emt 0:09:58]} Bg7 {[%emt 0:00:07]} 24. f5 {[%emt 0:02:34]} Kd8 {[%emt 0:00:34]} 25. fxe6 {[%emt 0:01:12]} fxe6 {[%emt 0:00:10]} 26. e5 {[%emt 0:01:43]} Bc8 {[%emt 0:08:00]} 27. Ne2 {[%emt 0:09:12]} Ra8 {[%emt 0:00:44]} 28. Nf4 {[%emt 0:02:52]} Nf8 {[%emt 0:00:52]} 29. Bd3 {[%emt 0:02:04]} Qa7 {[%emt 0:00:27]} 30. Nxg6 {[%emt 0:02:11]} Qa2+ {[%emt 0:01:02]} 31. Kc1 {[%emt 0:00:04]} Nxg6 {[%emt 0:00:36]} 32. Bxg6 {[%emt 0:00:12]} Bf8 {[%emt 0:00:09]} 33. Rd3 {[%emt 0:05:13]} Bb4 {[%emt 0:00:31]} 34. Rc3 {[%emt 0:00:18]} Bxc3 {[%emt 0:03:49]} 35. bxc3 {[%emt 0:00:03]} Qa3+ {[%emt 0:00:06]} 36. Kd2 {[%emt 0:00:20]} Qf8 {[%emt 0:00:13]} 37. Qh6 {[%emt 0:01:49]} Qf3 {[%emt 0:02:30]} 38. Bd3 {[%emt 0:01:23]} Ra7 {[%emt 0:01:11]} 39. g6 {[%emt 0:00:20]} Qg2+ {[%emt 0:01:52]} 40. Kc1 {[%emt 0:00:48]} Ba6 {[%emt 0:30:29]} 41. Bxa6 {[%emt 0:30:54]} Rxa6 {[%emt 0:00:51]} 42. Qg5+ {[%emt 0:00:15]} Qxg5 {[%emt 0:00:00]} 43. Bxg5+ {[%emt 0:00:00]} Kc8 {[%emt 0:00:00]} 44. Bf6 {[%emt 0:00:00]} Ra7 {[%emt 0:00:00]} 45. Kd2 {[%emt 0:00:00]} Ng7 {[%emt 0:00:00]} 46. Ke3 {[%emt 0:00:00]} Nf5+ {[%emt 0:00:00]} 47. Kf4 {[%emt 0:00:00]} Ra2 {[%emt 0:00:00]} 48. g7 {[%emt 0:00:00]} Nxg7 {[%emt 0:00:00]} 49. Bxg7 {[%emt 0:00:00]} Rxc2 {[%emt 0:00:00]} 50. Nc5 {[%emt 0:00:00]} Rxc3 {[%emt 0:00:00]} 51. Nxe6 {[%emt 0:00:00]} Rd3 {[%emt 0:00:00]} 52. Bf8 {[%emt 0:00:00]} Rd1 {[%emt 0:00:00]} 53. Kf5 {[%emt 0:00:00]} Kd7 {[%emt 0:00:00]} 54. Bc5 {[%emt 0:00:00]} Rf1+ {[%emt 0:01:45]} 55. Nf4 {[%emt 0:00:00]} Ke8 {[%emt 0:00:10]} 56. e6 {[%emt 0:00:00]} 1-0

[Event "WSCC 50 Open 2017"]
[Site "?"]
[Date "2017.11.12"]
[Round "6"]
[White "Larsen, Peter"]
[Black "Chan, Peng Kong"]
[Result "1-0"]
[ECO "B42"]
[WhiteElo "2286"]
[BlackElo "2172"]
[PlyCount "21"]
[EventDate "2017.??.??"]
[EventType "swiss"]
[EventCountry "ITA"]
[SourceTitle "Acqui Terme"]
[TimeControl "40/5400+30:1800+30"]
[WhiteClock "1:14:17"]
[BlackClock "0:55:42"]

1. e4 {[%emt 0:00:00]} c5 {[%emt 0:00:15]} 2. Nf3 {[%emt 0:00:00]} e6 {[%emt 0:00:12]} 3. d4 {[%emt 0:00:01]} cxd4 {[%emt 0:00:04]} 4. Nxd4 {[%emt 0:00:07]} a6 {[%emt 0:01:12]} 5. Bd3 {[%emt 0:06:23]} Bc5 {[%emt 0:01:16]} 6. Be3 {[%emt 0:03:50]} Qb6 {[%emt 0:00:55]} 7. c3 {[%emt 0:00:19]} Qxb2 {[%emt 0:00:06]} 8. O-O {[%emt 0:00:05]} Nc6 {[%emt 0:04:46]} 9. Nb3 {[%emt 0:08:18]} Bxe3 {[%emt 0:25:20]} 10. fxe3 {[%emt 0:01:29]} Nf6 {[%emt 0:05:42]} 11. Rf2 {[%emt 0:00:41]} 1-0

[Event "WSCC 50 Open 2017"]
[Site "?"]
[Date "2017.11.12"]
[Round "6"]
[White "Contin, Daniel"]
[Black "Jhunjhnuwala, Krishan"]
[Result "0-1"]
[ECO "A13"]
[WhiteElo "2272"]
[BlackElo "2340"]
[PlyCount "72"]
[EventDate "2017.??.??"]
[EventType "swiss"]
[EventCountry "ITA"]
[SourceTitle "Acqui Terme"]
[TimeControl "40/5400+30:1800+30"]
[WhiteClock "0:00:40"]
[BlackClock "0:14:42"]

1. c4 {[%emt 0:00:00]} e6 {[%emt 0:00:19]} 2. Nf3 {[%emt 0:00:00]} d5 {[%emt 0:00:19]} 3. g3 {[%emt 0:00:52]} c5 {[%emt 0:00:36]} 4. Bg2 {[%emt 0:00:12]} Nc6 {[%emt 0:00:35]} 5. O-O {[%emt 0:00:41]} Nf6 {[%emt 0:00:27]} 6. b3 {[%emt 0:00:16]} Be7 {[%emt 0:01:06]} 7. e3 {[%emt 0:00:08]} O-O {[%emt 0:01:35]} 8. Qe2 {[%emt 0:00:17]} Re8 {[%emt 0:04:08]} 9. Bb2 {[%emt 0:03:24]} b6 {[%emt 0:08:48]} 10. Rd1 {[%emt 0:02:51]} Ba6 {[%emt 0:04:35]} 11. Nc3 {[%emt 0:02:09]} Rc8 {[%emt 0:03:40]} 12. Nb5 {[%emt 0:00:28]} Bxb5 {[%emt 0:04:14]} 13. cxb5 {[%emt 0:00:08]} Nb8 {[%emt 0:01:42]} 14. d4 {[%emt 0:02:45]} Nbd7 {[%emt 0:02:23]} 15. Rac1 {[%emt 0:01:27]} Bf8 {[%emt 0:03:47]} 16. a4 {[%emt 0:01:23]} Qc7 {[%emt 0:06:01]} 17. dxc5 {[%emt 0:05:30]} bxc5 {[%emt 0:00:50]} 18. Nd4 {[%emt 0:00:32]} Qb6 {[%emt 0:04:41]} 19. Nc6 {[%emt 0:00:34]} a6 {[%emt 0:01:32]} 20. e4 {[%emt 0:04:57]} d4 {[%emt 0:07:26]} 21. g4 {[%emt 0:23:28]} axb5 {[%emt 0:02:28]} 22. axb5 {[%emt 0:03:05]} h6 {[%emt 0:06:09]} 23. h4 {[%emt 0:06:41]} e5 {[%emt 0:01:43]} 24. g5 {[%emt 0:00:12]} hxg5 {[%emt 0:01:11]} 25. hxg5 {[%emt 0:00:01]} Nh7 {[%emt 0:00:50]} 26. Qg4 {[%emt 0:06:39]} Re6 {[%emt 0:02:38]} 27. Bf1 {[%emt 0:10:38]} Rcxc6 {[%emt 0:02:38]} 28. bxc6 {[%emt 0:00:43]} Qxc6 {[%emt 0:00:09]} 29. Rd3 {[%emt 0:13:32]} Rg6 {[%emt 0:02:15]} 30. Rg3 {[%emt 0:00:30]} Ndf6 {[%emt 0:03:58]} 31. Qe2 {[%emt 0:06:34]} Nxe4 {[%emt 0:05:14]} 32. Rg4 {[%emt 0:00:06]} Nexg5 {[%emt 0:01:13]} 33. Bg2 {[%emt 0:00:32]} e4 {[%emt 0:00:46]} 34. Bxd4 {[%emt 0:00:47]} Nf3+ {[%emt 0:00:49]} 35. Kf1 {[%emt 0:03:51]} Rxg4 {[%emt 0:00:24]} 36. Bxc5 {[%emt 0:01:27]} Rxg2 {[%emt 0:02:39]} 0-1

[Event "WSCC 50 Open 2017"]
[Site "?"]
[Date "2017.11.12"]
[Round "6"]
[White "Luciani, Carlo"]
[Black "Welling, Gerard"]
[Result "1/2-1/2"]
[ECO "B10"]
[WhiteElo "2232"]
[BlackElo "2316"]
[PlyCount "101"]
[EventDate "2017.??.??"]
[EventType "swiss"]
[EventCountry "ITA"]
[SourceTitle "Acqui Terme"]
[TimeControl "40/5400+30:1800+30"]
[WhiteClock "0:26:51"]
[BlackClock "0:34:02"]

1. e4 {[%emt 0:00:00]} c6 {[%emt 0:02:14]} 2. Nc3 {[%emt 0:00:00]} d5 {[%emt 0:00:07]} 3. Nf3 {[%emt 0:00:00]} dxe4 {[%emt 0:01:25]} 4. Nxe4 {[%emt 0:00:02]} Nf6 {[%emt 0:00:03]} 5. Nxf6+ {[%emt 0:00:25]} exf6 {[%emt 0:01:22]} 6. Bc4 {[%emt 0:01:09]} Bd6 {[%emt 0:00:50]} 7. O-O {[%emt 0:00:14]} O-O {[%emt 0:00:06]} 8. d4 {[%emt 0:00:54]} Bg4 {[%emt 0:04:11]} 9. Re1 {[%emt 0:04:13]} Nd7 {[%emt 0:01:49]} 10. h3 {[%emt 0:01:59]} Bh5 {[%emt 0:00:49]} 11. c3 {[%emt 0:00:33]} Qc7 {[%emt 0:01:24]} 12. Qd3 {[%emt 0:07:20]} a5 {[%emt 0:08:44]} 13. Nh4 {[%emt 0:05:05]} b5 {[%emt 0:04:26]} 14. Bb3 {[%emt 0:04:20]} a4 {[%emt 0:00:07]} 15. Bc2 {[%emt 0:00:25]} Bg6 {[%emt 0:00:14]} 16. Nxg6 {[%emt 0:04:13]} hxg6 {[%emt 0:00:08]} 17. c4 {[%emt 0:01:04]} bxc4 {[%emt 0:00:24]} 18. Qxc4 {[%emt 0:00:19]} Nb6 {[%emt 0:00:03]} 19. Qe2 {[%emt 0:02:44]} f5 {[%emt 0:03:30]} 20. Bd2 {[%emt 0:01:48]} Rfb8 {[%emt 0:11:46]} 21. b3 {[%emt 0:03:25]} a3 {[%emt 0:01:19]} 22. Rac1 {[%emt 0:00:30]} Qd7 {[%emt 0:09:42]} 23. Qd3 {[%emt 0:01:37]} Nd5 {[%emt 0:01:06]} 24. Bd1 {[%emt 0:04:19]} Bb4 {[%emt 0:03:46]} 25. Bf3 {[%emt 0:00:42]} Bxd2 {[%emt 0:06:02]} 26. Qxd2 {[%emt 0:00:24]} Re8 {[%emt 0:00:56]} 27. Rxe8+ {[%emt 0:03:19]} Rxe8 {[%emt 0:00:01]} 28. Qa5 {[%emt 0:01:17]} Qd6 {[%emt 0:01:30]} 29. Bxd5 {[%emt 0:00:53]} cxd5 {[%emt 0:00:44]} 30. Qd2 {[%emt 0:07:55]} f4 {[%emt 0:02:19]} 31. b4 {[%emt 0:08:25]} g5 {[%emt 0:05:51]} 32. b5 {[%emt 0:05:08]} Qe6 {[%emt 0:02:24]} 33. Rc3 {[%emt 0:03:56]} Qe1+ {[%emt 0:02:12]} 34. Qxe1 {[%emt 0:00:25]} Rxe1+ {[%emt 0:00:03]} 35. Kh2 {[%emt 0:00:24]} Rb1 {[%emt 0:00:03]} 36. Rxa3 {[%emt 0:04:17]} Rxb5 {[%emt 0:00:07]} 37. Rb3 {[%emt 0:08:24]} Ra5 {[%emt 0:00:23]} 38. a3 {[%emt 0:00:26]} f6 {[%emt 0:01:50]} 39. g4 {[%emt 0:02:27]} Kf7 {[%emt 0:03:37]} 40. Kg2 {[%emt 0:00:32]} Ra4 {[%emt 0:33:03]} 41. Rd3 {[%emt 0:38:23]} Ke6 {[%emt 0:02:50]} 42. Kf3 {[%emt 0:01:30]} Kd6 {[%emt 0:01:08]} 43. Ke2 {[%emt 0:00:25]} Rc4 {[%emt 0:02:49]} 44. Kd2 {[%emt 0:04:05]} Kd7 {[%emt 0:01:11]} 45. Rc3 {[%emt 0:00:00]} Ra4 {[%emt 0:00:00]} 46. Kd3 {[%emt 0:00:00]} Kd6 {[%emt 0:00:00]} 47. Rb3 {[%emt 0:00:00]} Kc6 {[%emt 0:00:00]} 48. Rc3+ {[%emt 0:00:00]} Kd6 {[%emt 0:00:00]} 49. Rb3 {[%emt 0:00:00]} Kc6 {[%emt 0:00:00]} 50. Rc3+ {[%emt 0:00:00]} Kd6 {[%emt 0:00:00]} 51. Rb3 1/2-1/2

[Event "WSCC 50 Open 2017"]
[Site "?"]
[Date "2017.11.12"]
[Round "6"]
[White "Baimurzin, Aitkazy"]
[Black "Petran, Peter"]
[Result "1/2-1/2"]
[ECO "A10"]
[WhiteElo "2170"]
[BlackElo "2330"]
[PlyCount "97"]
[EventDate "2017.??.??"]
[EventType "swiss"]
[EventCountry "ITA"]
[SourceTitle "Acqui Terme"]
[TimeControl "40/5400+30:1800+30"]

1. c4 g6 2. g3 Bg7 3. Bg2 d6 4. Nc3 c5 5. e3 Nc6 6. Nge2 e5 7. d3 Nge7 8. a3 a5 9. b3 O-O 10. O-O Rb8 11. Ra2 Be6 12. Rc2 b6 13. e4 Qd7 14. Be3 f5 15. Nd5 b5 16. Rc1 fxe4 17. dxe4 bxc4 18. bxc4 Nd4 19. Nec3 Nec6 20. Qa4 Bh3 21. Bxd4 Nxd4 22. Qxd7 Bxd7 23. Rb1 Be6 24. Rfd1 Bg4 25. Rdc1 Kf7 26. h3 Be2 27. Bf1 Nf3+ 28. Kg2 Bxf1+ 29. Rxf1 Nd2 30. Nb5 Kg8 31. Rfc1 Nxb1 32. Rxb1 Rf7 33. Rd1 Bf8 34. Rd3 Kg7 35. Ne3 Rb6 36. h4 a4 37. Nd5 Rc6 38. Ndc3 Ra6 39. Nd5 Rb7 40. Ndc3 h5 41. Kf1 Be7 42. Nd5 Bd8 43. Ke2 Kf7 44. Ndc3 Ke6 45. Nd5 Ra5 46. Ndc3 Be7 47. Rd1 Kd7 48. Rb1 Rb8 49. Rd1 1/2-1/2